Cogmind - Beta 15 @@@ ROGUE MODE // 2025.06.28 @ 15:47:40 Player: AUSBird Result: Destroyed by D-53 Grenadier with Mini Grenade Launcher Performance ------------- Evolutions (0) 0 Regions Visited (2) 400 Robots Destroyed (8) 40 Value Destroyed (254) 254 Prototype IDs (0) 0 Alien Tech Used (0) 0 Bonus (0) 0 TOTAL SCORE: 694 Bonus ------- None Cogmind --------- Core Integrity 0/250 Matter 281/300 Energy 124/125 System Corruption 0% Temperature Cool (0) Movement Core (150) Ox2 Location -10/Mines Parts ------- > --- POWER (1) -------- Light Ion Engine > --- PROPULSION (2) --- (None) > --- UTILITY (2) ------ Heat Sink Small Storage Unit > --- WEAPON (2) ------- (None) > --- INVENTORY (8) ---- Light Ion Engine Light Ion Engine Wheel Visual Processing Unit Power Shielding Peak State ------------ > --- POWER ------------ Light Ion Engine > --- PROPULSION ------- Wheel Wheel > --- UTILITY ---------- Heat Sink Small Storage Unit > --- WEAPON ----------- Rocket Launcher Mining Laser > --- INVENTORY -------- Light Ion Engine Light Ion Engine Wheel Visual Processing Unit Power Shielding [Rating: 8] Favorites ----------- Power Light Ion Engine Engine Light Ion Engine Propulsion Wheel Treads Light Treads Leg Aluminum Leg Wheel Wheel Utility Small Storage Unit Device Heat Sink Storage Small Storage Unit Weapon EM Pulse Gun Energy Gun EM Pulse Gun Ballistic Gun Assault Rifle Launcher Rocket Launcher Special Weapon Mining Laser Build | -11 -10 -10 ------- Run | Yrd Mat Min Slots Evolved . | . . . Power . | . . . Propulsion . | . . . Utility . | . . . Weapon . | . . . Parts Attached 18 | 6 11 1 Power 3 | 1 2 . Engine 3 | 1 2 . Core . | . . . Reactor . | . . . Propulsion 6 | 2 4 . Treads 2 | . 2 . Leg 1 | 1 . . Wheel 3 | 1 2 . Hover . | . . . Flight . | . . . Utility 3 | 1 2 . Device 2 | . 2 . Storage 1 | 1 . . Processor . | . . . Hackware . | . . . Protection . | . . . Artifact . | . . . Weapon 6 | 2 3 1 Energy Gun 2 | 2 . . Energy Cannon . | . . . Ballistic Gun 1 | . 1 . Ballistic Cannon . | . . . Launcher 1 | . . 1 Special Weapon 2 | . 2 . Impact Weapon . | . . . Slashing Weapon . | . . . Piercing Weapon . | . . . Special Melee Weapon . | . . . Unidentified Prototypes . | . . . Parts Lost 9 | . 5 4 Power 1 | . 1 . Propulsion 2 | . . 2 Utility 1 | . 1 . Weapon 5 | . 3 2 Highest Loss Streak 4 | . 3 4 To Critical Strikes . | . . . Average Backups 6 | 5 7 5 Power 1 | 1 1 2 Propulsion 2 | 3 1 1 Utility . | . 1 2 Weapon 1 | . 3 . Tool/Special . | . . . Unused Backups 9 | . 4 5 Power 3 | . 1 2 Propulsion 2 | . 1 1 Utility 2 | . . 2 Weapon 2 | . 2 . Tool/Special . | . . . Average Slot Usage (%) 87 | . 84 95 Engine 13 | . 12 14 Leg 1 | . 2 . Wheel 26 | . 25 26 Device 10 | . 8 14 Storage 14 | . 14 14 Energy Gun 7 | . 10 . Ballistic Gun 6 | . 9 . Launcher 3 | . . 10 Special Weapon 4 | . . 14 Peak Build Rating 8 | 6 7 8 Average Rating 6 | 5 5 7 On Entrance 4 | . 6 6 Naked Turns . | . . . Heaviest Build 14 | 11 13 14 Greatest Support 26 | 10 26 20 Greatest Overweight (x) 2 | 1 1 2 Average Overweight (x) . | . . . Largest Inventory Capacity 8 | 8 8 8 Average Capacity 7 | 7 8 8 Most Carried 8 | 6 8 6 Average Carried 6 | 5 7 5 Final Capacity 8 | 8 8 8 Final Carried 6 | 6 5 5 Class Distribution -------------------- 100% | Mutant Dominant Class ---------------- Mutant | -10/Materials Mutant | -10/Mines Resources | -11 -10 -10 ----------- Run | Yrd Mat Min Matter Collected 398 | 189 155 54 Remotely . | . . . Salvage Created 307 | . 281 26 Parts 19 | . 19 . Haulers Intercepted . | . . . Recyclers Shooed . | . . . Parts Field Recycled . | . . . Retrieved Matter . | . . . Parts Self-Destructed . | . . . Prevented . | . . . Kills | -11 -10 -10 ------- Run | Yrd Mat Min Combat Hostiles Destroyed 9 | . 6 3 Guns 5 | . 5 . AOE 4 | . 1 3 Classes Destroyed 3 | . 2 1 Watcher 1 | . 1 . Grunt 7 | . 6 1 Assembled 2 | . . 2 Best Kill Streak 6 | . 6 3 Combat Bots Only 5 | . 5 3 Max Kills in Single Turn 1 | . 1 1 Gunslinging . | . . . Exploded 1 | . 1 1 Melee . | . . . Uniques/NPCs Destroyed . | . . . Combat | -11 -10 -10 -------- Run | Yrd Mat Min Hostile Shots Fired 77 | . 63 14 Missed 28 | . 22 6 Hits 49 | . 41 8 Projectile 49 | . 41 8 AOE 8 | . . 8 Damage Taken 830 | . 478 352 Core 260 | . 112 148 Absorbed by Shields . | . . . Regen/Repaired (Parts) 12 | . 12 . Core Remaining (%) 100 | 100 . . Volleys Fired 25 | . 22 3 Largest 2 | . 2 1 Hottest 80 | . 80 33 Shots Fired 37 | . 34 3 Gun 34 | . 34 . Cannon . | . . . Launcher 3 | . . 3 Special . | . . . Kinetic 13 | . 13 . Thermal 9 | . 9 . Explosive 3 | . . 3 Electromagnetic 12 | . 12 . Robot Hit Streak 5 | . 5 1 Robot Miss Streak 4 | . 4 2 Penetration Max . | . . . Secondary Targets 2 | . 2 . Max Gunslinging Chain 1 | . 1 . Shots Hit Robots 22 | . 21 1 Core Hits 15 | . 11 4 Critical Kills . | . . . Critical Parts Destroyed . | . . . Critical Strikes . | . . . Melee Attacks . | . . . Impact . | . . . Slashing . | . . . Piercing . | . . . Sneak Attacks . | . . . Combat Hostiles . | . . . Follow-up Attacks . | . . . Damage Inflicted 637 | . 407 230 Guns 343 | . 343 . Cannons . | . . . Explosions 294 | . 64 230 Melee . | . . . Ramming . | . . . Kinetic 126 | . 126 . Thermal 129 | . 129 . Explosive 230 | . . 230 Electromagnetic 152 | . 152 . Impact . | . . . Slashing . | . . . Piercing . | . . . Highest Corruption . | . . . Average Corruption . | . . . Corruption Purged . | . . . Corruption Blocked . | . . . Overload Shots . | . . . Overflow Damage 30 | . . 30 Projectiles . | . . . Explosions 30 | . . 30 Melee . | . . . Knockbacks . | . . . Impact . | . . . Kinetic . | . . . Secondary . | . . . Self-Inflicted Damage 72 | . 24 48 Shots 2 | . 1 1 Rammed . | . . . Targets Rammed . | . . . Kicked . | . . . Crushed . | . . . Highest Temperature 268 | . 268 . Average Temperature 156 | . 156 . Received Heat Transfer 246 | . 246 . Siege Activations . | . . . Martial Activations . | . . . Shielding Activations . | . . . Robots Disrupted . | . . . Combat Hostiles . | . . . Robots Corrupted . | . . . Combat Hostiles . | . . . Parts Fried . | . . . Impact Corruptions . | . . . Robots Melted . | . . . Combat Hostiles . | . . . Parts Melted . | . . . Heat Transferred 200 | . 200 . Parts Sabotaged . | . . . Parts Stolen . | . . . Parts Stripped . | . . . Power Chain Reactions 1 | . 1 . Alert | -11 -10 -10 ------- Run | Yrd Mat Min Maximum Alert Level . | . . . Low Security (%) 100 | 100 100 100 Level 1 . | . . . Level 2 . | . . . Level 3 . | . . . Level 4 . | . . . Level 5 . | . . . High Security . | . . . Max Security . | . . . Peak Influence 90 | . 90 25 Initial 7 | . . 7 Average 16 | . 37 2 Influence Increases 215 | . 181 34 Destroy 0b10 Robot/C 140 | . 120 20 Destroy 0b10 Robot/NC 5 | . 5 . Destroy Leader 22 | . 22 . Successful Hack 16 | . 16 . Destroy Structure 17 | . 3 14 Partial Spotted 15 | . 15 . Influence Decreases 190 | . 160 30 Entered New Map 14 | . . 14 Time Decay 135 | . 120 15 Lost Part 41 | . 40 1 Squads Dispatched 4 | . 4 . Investigation 2 | . 2 . Extermination . | . . . Reinforcement 2 | . 2 . Assault . | . . . Garrison . | . . . Intercept . | . . . Searches Triggered . | . . . Construction Impeded . | . . . Haulers Reinforced . | . . . Active Scanning Responses . | . . . Cargo Convoy Interrupts . | . . . Stealth | -11 -10 -10 --------- Run | Yrd Mat Min Distress Signals . | . . . Communications Jammed . | . . . Distress Signals . | . . . Times Spotted 31 | . 13 18 Peak Tracking Total 12 | . 5 12 Tactical Retreats 1 | . . 1 Traps | -11 -10 -10 ------- Run | Yrd Mat Min Traps Triggered . | . . . Indirectly . | . . . Trap Hack Attempts . | . . . Triggered . | . . . Disarmed . | . . . Reprogrammed . | . . . Reused . | . . . Traps Extracted . | . . . Installed . | . . . Triggered . | . . . Machines | -11 -10 -10 ---------- Run | Yrd Mat Min Machines Disabled . | . . . Max in Single Turn . | . . . Machines Repaired . | . . . Machines Dismantled . | . . . Machines Sabotaged . | . . . Overloaded Fab Kills . | . . . Hacking | -11 -10 -10 --------- Run | Yrd Mat Min Machines Accessed 4 | . 3 1 Terminals 1 | . 1 . Fabricators . | . . . Repair Stations 1 | . 1 . Recycling Units 1 | . 1 . Scanalyzers . | . . . Garrison Access . | . . . Total Hacks 15 | . 14 1 Successful 9 | . 8 1 Failed 6 | . 6 . Catastrophic 1 | . 1 . Database Lockouts . | . . . Manual . | . . . Terminals 5 | . 5 . Fabricators . | . . . Repair Stations 5 | . 5 . Recycling Units 4 | . 4 . Scanalyzers . | . . . Garrison Access . | . . . Terminal Hacks 4 | . 3 1 Open Door 1 | . . 1 Dispatch Records 1 | . 1 . Patrol Status 1 | . 1 . Zone Layout 1 | . 1 . Fabricator Hacks . | . . . Repair Station Hacks 3 | . 3 . Scan Component 2 | . 2 . Repair 1 | . 1 . Recycling Unit Hacks 2 | . 2 . Retrieve Matter 1 | . 1 . Retrieve Components 1 | . 1 . Scanalyzer . | . . . Garrison Access Hacks . | . . . Unauthorized Hacks . | . . . Terminals . | . . . Fabricators . | . . . Repair Stations . | . . . Recycling Units . | . . . Scanalyzers . | . . . Garrison Access . | . . . Data Cores Recovered . | . . . Used . | . . . Hacking Detections 3 | . 3 . Full Trace Events 3 | . 3 . Feedback Events . | . . . Feedback Blocked . | . . . Robot Schematics Acquired . | . . . Robots Built . | . . . Authchips . | . . . Time . | . . . Total Robot Build Rating . | . . . Part Schematics Acquired . | . . . Parts Built . | . . . Authchips . | . . . Time . | . . . Total Part Build Rating . | . . . Parts Repaired 1 | . 1 . Time 26 | . 26 . Parts Recycled . | . . . Recycled Matter . | . . . Retrieved Matter . | . . . Retrieved Components 1 | . 1 . Parts Scanalyzed . | . . . Part Schematics Acquired . | . . . Parts Damaged . | . . . Bothacking | -11 -10 -10 ------------ Run | Yrd Mat Min Used RIF Installer . | . . . Robots Hacked . | . . . Non-combat . | . . . Combat . | . . . Robot Hacks Applied . | . . . Relay Couplers Released . | . . . Fabnet Peak Effective % . | . . . Robots Rewired . | . . . Allies Hacked . | . . . Hacks Repelled . | . . . Allies | -11 -10 -10 -------- Run | Yrd Mat Min Total Allies . | . . . Largest Group . | . . . Highest-Rated Group . | . . . Highest-Rated Ally . | . . . Total Orders . | . . . Ally Attacks . | . . . Total Damage . | . . . Kills . | . . . Allies Corrupted . | . . . Allies Melted . | . . . Intel | -11 -10 -10 ------- Run | Yrd Mat Min Active Infowar (turns) 11 | . 11 . ECM 11 | . 11 . Robot Analysis Total . | . . . Derelict Logs Recovered . | . . . Drone Launches . | . . . Drone Recoveries . | . . . Exploration | -11 -10 -10 ------------- Run | Yrd Mat Min Turns Passed 715 | 283 314 118 Spaces Moved 553 | 149 268 136 Core 11 | 9 . 2 Treads . | . . . Legs . | . . . Wheels 542 | 140 268 134 Hover . | . . . Flight . | . . . Fastest Speed 50 | 50 80 80 Average Speed 85 | 90 84 81 Slowest Speed 150 | 95 95 150 Overloaded Moves . | . . . Propulsion Burnouts . | . . . Robots Hopped . | . . . Potential Cave-ins . | . . . Cave-ins Triggered . | . . . Exploration Rate (%) 27 | 7 43 32 Regions Visited 2 Branch Regions 1 Pre-discovered Areas . | . . . Known Exits Taken . | . . . Unknown Exits Taken 2 | 1 1 . Scrap Searched 1 | . . 1 Spaces Dug . | . . . Terrain Destroyed 23 | . 3 20 Melee . | . . . Projectile . | . . . AOE 23 | . 3 20 Terrain Rammed . | . . . Walls Destroyed . | . . . Machines Disabled . | . . . Actions | -11 -10 -10 --------- Run | Yrd Mat Min Total 763 | 297 325 141 Wait 131 | 131 . . Move 551 | 148 267 136 Hop . | . . . Pick Up 27 | 12 14 1 Fast Attach . | . . . Attach 19 | 6 12 1 Detach 1 | . 1 . Swap . | . . . Drop 9 | . 9 . Fire 25 | . 22 3 Melee . | . . . Ram . | . . . Kick . | . . . Crush . | . . . Escape Stasis . | . . . Rewire . | . . . Trap . | . . . Miscellaneous . | . . . Route ------- -11/Scrapyard -10/Materials (discovered 3 exits: [*Mat] / *Min x2) -10/Mines History --------- Turn | Location | Event 27 | -11/Scrapyard | Discovered new exit (range 15) 284 | -11/Scrapyard | Entered Materials 304 | -10/Materials | Build established: Mutant 408 | -10/Materials | Lost 3 parts (1p1u1w) 462 | -10/Materials | Discovered new exit (range 11) 494 | -10/Materials | Discovered new exit (range 13) 539 | -10/Materials | Discovered new exit (range 10) 580 | -10/Materials | Repaired Lgt. Ion Engine? 598 | -10/Materials | Entered Mines 605 | -10/Mines | Received a Rocket Launcher from a helpful Derelict 654 | -10/Mines | Assembled infested the area 688 | -10/Mines | Met a Derelict who couldn't figure out how to use a Trap Extractor 691 | -10/Mines | Core integrity fell below 50% 715 | -10/Mines | Core integrity fell below 20% 716 | -10/Mines | Destroyed by D-53 Grenadier with Mini Grenade Launcher Last Messages --------------- The unstable cave ceiling collapses. R-06 Scavenger collects Beamcaster. R-06 Scavenger collects Lgt. Angular Momentum Engine. Wheel destroyed. The unstable cave ceiling collapses. Searching scrap... Found Sml. Storage Unit. Found Core Shielding. Found 43 Matter. Found Structural Scanner. Found 54 Matter. Acquired 54 matter. Mining Laser destroyed. Rocket Launcher destroyed. Destroyed Rocket Launcher. Wheel destroyed. Destroyed Wheel. G-34 Mercenary destroyed. The unstable cave ceiling collapses. Map ----- +----------------------------------------------------+ | ?????????????????????????????????????????????????# | | ????????????????????????????????????????????????## | | ???????????????????????????????????????????????## | | ??????????????????????????????????????????????## | | ?????????????????????????????????????????????## | | ????????????????????????????????????????????## | | ????????????????????????????????????????????# | | ???????????????????????????????????????????## | | ?????????????????????????????????????####?## ## | | ????????????????????????????????????## ### #? | | ????????????????????????????????????# ## | | ???????????????????????????????????## # | | ??????????????????????????????????## | | ??????????????????????????????????# | | ??????????????????????????# ###### ## | | ???????????????##??###????# ## ##### | | ???????????????"" """ ????# ## ###????# | | ???????????# """ """ ???######## ## ## #??????? | | ???????????# """ """ ???####???# ?# #??????? | | ???????????# g ??? ???? ?## ###??????? | | ????????????? % #### #??#### ####????? | | ??????????????? ### # r # #??? | | ?????????????????? ## # ??? | | ???????????????????## # = *%# ?? | | ???????????????????# ! [d! r ?? | | ???????????????????# @ ! d | | ???????????????????# ? | | ???????????????? ? | | ???????????????######### ? | | ???????????????????????##### #? | | ??????????????????????????# # ## ?? | | ??????????????????????????# ## #????? | | ??????????????????????????## #???? | | ???????????????????????????### ## #???? | | ?????????????????????????????# ##? ##???? | | ?????????????????????????????# ##?? ####????? | | ????????????????????????????# #####????#???????? | | ????????????????????????????#####????????????????? | | ?????????????????????????????????????????????????? | | ?????????????????????????????????????????????????? | | ?????????????????????????????????????????????????? | | ?????????????????????????????????????????????????? | | ?????????????????????????????????????????????????? | | ?????????????????????????????????????????????????? | | ?????????????????????????????????????????????????? | | ?????????????????????????????????????????????????? | | ?????????????????????????????????????????????????? | | ?????????????????????????????????????????????????? | | ?????????????????????????????????????????????????? | | ?????????????????????????????????????????????????? | +----------------------------------------------------+ Best States ------------- Heat Dissipation 35 Energy Generation 10 Energy Capacity 125 Matter Stores 300 Matter Capacity 300 Sight Range 16 Terrain Scan Density 10 ECM Strength 1 Evasion (%) 50 Item Schematics ----------------- None Robot Schematics ------------------ None Fabricated ------------ Nothing Repaired ---------- Lgt. Ion Engine | 70% | -10/Materials Alien Tech Used ----------------- None Achievements -------------- Part-time Mechanic Challenges ------------ None Game ------ Seed ActiveNovaCompactor Manual? 0 Play Time 00:17:05 Cumulative 2.5 hours Start 2025.06.28 @ 15:31:47 End 2025.06.28 @ 15:47:40 Sessions 1 Manual Loads 0 Difficulty Rogue Special Mode None Game No. 4 Rogue 3 Adventurer 1 Explorer 0 Win Type - Total 0 Types 0/0/0/0/0/0/0/0/0/0 Lore% 1 Gallery% 4 Achievement% 7 Wizard Run 0 Options --------- Layout 1 ASCII 0 Keyboard 0 Movement Arrows Keybinds 0 Fullscreen 2 Font 28/SmallcapsGlow Map View 50x43 Zoom Use 0% Tactical HUD 0 Map Filters NONE Filters NONE Steam 1 RUN: 8007e578-e1a5-462e-ad39-34131b38b515